bitfinex/quotes_BTCUSD_20250604
["timestamp","ask_amount","ask_price","bid_price","bid_amount"]
[1748998148127,0.1333446,105330.0,105320.0,0.7268543]
[1748998150447,0.0531446,105330.0,105320.0,0.7268543]
[1748998150716,0.0031446,105330.0,105320.0,1.15414612]
[1748998150960,0.0031446,105330.0,105320.0,1.18263512]
[1748998152992,0.0031446,105330.0,105320.0,1.15414612]
[1748998155096,0.0031446,105330.0,105320.0,1.42738612]
[1748998155943,0.0031446,105330.0,105320.0,1.44192697]
[1748998156987,0.0031446,105330.0,105320.0,1.78192697]
[1748998157405,0.0031446,105330.0,105320.0,1.81199819]
[1748998160601,0.0031446,105330.0,105320.0,1.78192697]
[1748998160840,0.0031446,105330.0,105320.0,1.81041397]
[1748998163849,0.0031446,105330.0,105320.0,1.77923397]
[1748998164092,0.0340446,105330.0,105320.0,0.6435813]
[1748998164324,0.1340446,105330.0,105320.0,0.7060943]
[1748998164803,0.0840446,105330.0,105320.0,0.7060943]
[1748998165057,0.0840446,105330.0,105320.0,0.9998143]
[1748998165276,0.0840446,105330.0,105320.0,0.6150943]
[1748998165496,0.0840446,105330.0,105320.0,0.9998143]
[1748998172318,0.0840446,105330.0,105320.0,1.39620612]
[1748998172319,0.0031446,105330.0,105320.0,1.39620612]
[1748998175250,0.0031446,105330.0,105320.0,0.9998143]
[1748998178339,0.0031446,105330.0,105320.0,1.39620612]
[1748998178841,0.0031446,105330.0,105320.0,1.42720612]
[1748998179084,0.0031446,105330.0,105320.0,1.44174697]
[1748998180258,0.0031446,105330.0,105320.0,1.47023397]
[1748998181439,0.0031446,105330.0,105320.0,1.43923397]
[1748998193615,0.0031446,105330.0,105320.0,1.47113397]
[1748998194071,0.0031446,105330.0,105320.0,1.45463397]
[1748998194511,0.0031446,105330.0,105320.0,1.43923397]
[1748998200523,0.0031446,105330.0,105320.0,1.46930519]
[1748998200737,0.0031446,105330.0,105320.0,1.46910519]
[1748998204969,0.0031446,105330.0,105320.0,1.48450519]
[1748998205178,0.0031446,105330.0,105320.0,1.45601819]
[1748998205386,0.0031446,105330.0,105320.0,1.85204047]
[1748998206105,0.0031446,105330.0,105320.0,1.83664047]
[1748998207011,0.0031446,105330.0,105320.0,1.54312047]
[1748998207263,0.0031446,105330.0,105320.0,1.04422637]
[1748998207495,0.0031446,105330.0,105320.0,1.44045378]
[1748998208511,0.07594096,105380.0,105350.0,0.05]
[1748998208715,0.00048171,105370.0,105360.0,0.09088]
[1748998210405,0.00748171,105370.0,105360.0,0.09188]
[1748998211460,0.03968171,105370.0,105360.0,0.09188]
[1748998211730,0.04668171,105370.0,105360.0,0.09188]
[1748998225441,0.06442279,105370.0,105360.0,0.09188]
[1748998225665,0.04668171,105370.0,105360.0,0.09188]
[1748998229295,0.04668171,105370.0,105360.0,0.38532]
[1748998235863,0.06441677,105370.0,105360.0,0.38532]
[1748998236085,0.04668171,105370.0,105360.0,0.38532]
[1748998236304,0.06441699,105370.0,105360.0,0.38532]
[1748998236519,0.04668171,105370.0,105360.0,0.38532]
[1748998242499,0.01448171,105370.0,105360.0,0.5311743]
[1748998242719,0.01448171,105370.0,105360.0,0.5632743]
[1748998242924,0.01448171,105370.0,105360.0,0.95950252]
[1748998243343,0.00748171,105370.0,105360.0,0.95950252]
[1748998243799,0.01148171,105370.0,105360.0,0.5632743]
[1748998244225,0.00448171,105370.0,105360.0,0.5622743]
[1748998244651,0.00948171,105370.0,105360.0,0.5622743]
[1748998244856,0.00548171,105370.0,105360.0,0.5622743]
[1748998245061,0.00748171,105370.0,105360.0,0.5622743]
[1748998245306,0.00948171,105370.0,105360.0,0.5622743]
[1748998249393,0.00948171,105370.0,105360.0,0.95833003]
[1748998249807,0.00948171,105370.0,105360.0,0.5622743]
[1748998250466,0.00948171,105370.0,105360.0,0.1779543]
[1748998250678,0.00948171,105370.0,105360.0,0.5620343]
[1748998251969,0.00948171,105370.0,105360.0,0.66481003]
[1748998252175,0.00948171,105370.0,105360.0,0.95809003]
[1748998257304,0.00948171,105370.0,105360.0,0.97263088]
[1748998257514,0.00948171,105370.0,105360.0,1.31263088]
[1748998258584,0.00748171,105370.0,105360.0,1.70868661]
[1748998258795,0.00748171,105370.0,105360.0,1.70968661]
[1748998259003,0.00048171,105370.0,105360.0,1.70968661]
[1748998259878,0.00048171,105370.0,105360.0,1.31363088]
[1748998260079,0.00048171,105370.0,105360.0,1.70968661]
[1748998262945,0.00048171,105370.0,105360.0,1.31363088]
[1748998264863,0.00048171,105370.0,105360.0,1.70968661]
[1748998265816,0.00048171,105370.0,105360.0,2.10968661]
[1748998266898,0.00048171,105370.0,105360.0,2.13815961]
[1748998267530,0.00048171,105370.0,105360.0,2.21823083]
[1748998270897,0.00029189,105370.0,105360.0,2.21823083]
[1748998271624,0.00029189,105370.0,105360.0,2.70473083]
[1748998272925,0.00029189,105370.0,105360.0,2.70373083]
[1748998273270,0.00029189,105370.0,105360.0,2.70573083]
[1748998273903,0.00029189,105370.0,105360.0,2.70773083]
[1748998275323,0.00029189,105370.0,105360.0,2.32365083]
[1748998275568,0.00029189,105370.0,105360.0,2.70741083]
[1748998279125,0.00029189,105370.0,105360.0,1.91529937]
[1748998279337,0.00029189,105370.0,105360.0,2.70741083]
[1748998281088,0.00029189,105370.0,105360.0,2.95041961]
[1748998286516,0.00029189,105370.0,105360.0,2.98833315]
[1748998286720,0.00029189,105370.0,105360.0,3.03833315]
[1748998288389,0.00029189,105370.0,105360.0,2.65457315]
[1748998288617,0.00029189,105370.0,105360.0,3.03813315]
[1748998289922,0.00029189,105370.0,105360.0,2.65457315]
[1748998290156,0.00029189,105370.0,105360.0,1.71187657]
[1748998290430,0.00029189,105370.0,105360.0,0.48170404]
[1748998290431,0.03179189,105370.0,105360.0,0.48170404]
[1748998290664,0.03179189,105370.0,105360.0,0.4229343]
[1748998290923,0.03179189,105370.0,105360.0,0.4729343]
[1748998291140,0.03179189,105370.0,105360.0,0.4229343]
[1748998291355,0.03179189,105370.0,105360.0,0.8064543]
[1748998291565,0.03179189,105370.0,105360.0,0.8044543]
[1748998291773,0.03179189,105370.0,105360.0,0.8024543]
[1748998291981,0.03179189,105370.0,105360.0,0.8044543]
[1748998292190,0.03179189,105370.0,105360.0,0.4209343]
[1748998292395,0.03179189,105370.0,105360.0,0.8024543]
[1748998292815,0.03279189,105370.0,105360.0,0.8024543]
[1748998293672,0.03379189,105370.0,105360.0,0.8024543]
[1748998303155,0.03379189,105370.0,105360.0,0.5095343]
[1748998303357,0.03379189,105370.0,105360.0,0.8024543]
[1748998314967,0.00229189,105370.0,105360.0,0.8024543]
[1748998315191,0.00229189,105370.0,105360.0,1.24395088]
[1748998315413,0.00229189,105370.0,105360.0,1.31989184]
[1748998316464,0.00229189,105370.0,105360.0,1.24395088]
[1748998317359,0.00229189,105370.0,105360.0,0.81699515]
[1748998317567,0.00229189,105370.0,105360.0,1.21305088]
[1748998318253,0.00229189,105370.0,105360.0,1.22845088]
[1748998318467,0.00229189,105370.0,105360.0,1.24485088]
[1748998318897,0.00229189,105370.0,105360.0,1.58485088]
[1748998319328,0.00229189,105370.0,105360.0,1.18879515]
[1748998319536,0.00229189,105370.0,105360.0,1.58485088]
[1748998320718,0.00229189,105370.0,105360.0,1.61514762]
[1748998321917,0.00229189,105370.0,105360.0,2.03967835]
[1748998322619,0.00229189,105370.0,105360.0,1.64362262]
[1748998324693,0.00229189,105370.0,105360.0,2.04362262]
[1748998324924,0.00229189,105370.0,105360.0,2.43967835]
[1748998325665,0.00229189,105370.0,105360.0,2.40938161]
[1748998327134,0.00229189,105370.0,105360.0,2.38090661]
[1748998328171,0.00229189,105370.0,105360.0,1.98485088]
[1748998330879,0.00229189,105370.0,105360.0,2.38090661]
[1748998333125,0.00229189,105370.0,105360.0,1.98485088]
[1748998333828,0.00229189,105370.0,105360.0,1.69193088]
[1748998334050,0.00229189,105370.0,105360.0,1.98469088]
[1748998336686,0.00229189,105370.0,105360.0,2.38074661]
[1748998336956,0.00229189,105370.0,105360.0,2.41104335]
[1748998337577,0.00229189,105370.0,105360.0,2.43951635]
[1748998338873,0.00229189,105370.0,105360.0,2.45921961]
[1748998339517,0.00029189,105370.0,105360.0,2.45921961]
[1748998340402,0.00029189,105370.0,105360.0,2.46121961]
[1748998340824,0.00029189,105370.0,105360.0,2.99771961]
[1748998340999,0.00029189,105370.0,105360.0,2.99971961]
[1748998341246,0.00023031,105370.0,105360.0,2.99971961]
[1748998341456,0.00023031,105370.0,105360.0,3.03763315]
[1748998351230,2.078e-05,105370.0,105360.0,3.03763315]
[1748998361129,0.05196297,105390.0,105380.0,0.06454085]
[1748998361359,0.06751113,105390.0,105380.0,0.67710862]
[1748998361599,0.06751113,105390.0,105380.0,0.69457838]
[1748998361801,0.06751113,105390.0,105380.0,0.72304638]
[1748998362017,0.06751113,105390.0,105380.0,1.12304638]
[1748998362442,0.03751113,105390.0,105380.0,1.12304638]
[1748998363799,0.03651113,105390.0,105380.0,1.12304638]
[1748998364011,0.03551113,105390.0,105380.0,1.12304638]
[1748998364467,0.03551113,105390.0,105380.0,1.09278864]
[1748998365112,0.03551113,105390.0,105380.0,1.43278864]
[1748998365316,0.03551113,105390.0,105380.0,1.43378864]
[1748998365984,0.03551113,105390.0,105380.0,1.47370218]
[1748998366498,0.03551113,105390.0,105380.0,1.56414645]
[1748998366711,0.03551113,105390.0,105380.0,1.96020218]
[1748998367356,0.03551113,105390.0,105380.0,1.56414645]
[1748998367576,0.03551113,105390.0,105380.0,2.25276218]
[1748998368951,0.05051113,105390.0,105380.0,2.25276218]
[1748998369204,0.01504816,105390.0,105380.0,2.25276218]
[1748998369434,0.03024816,105390.0,105380.0,1.47374645]
[1748998369658,0.03024816,105390.0,105380.0,2.21480864]
[1748998369910,0.03024816,105390.0,105380.0,0.60955371]
[1748998370346,0.03024816,105390.0,105380.0,0.91661456]
[1748998371218,0.03024816,105390.0,105380.0,0.53369456]
[1748998371426,0.03024816,105390.0,105380.0,1.31248332]
[1748998373346,0.03024816,105390.0,105380.0,0.91661456]
[1748998375577,0.03024816,105390.0,105380.0,1.16233456]
[1748998379036,0.03024816,105390.0,105380.0,1.55816209]
[1748998380820,0.01504816,105390.0,105380.0,1.55816209]
[1748998381058,4.816e-05,105390.0,105380.0,1.55816209]
[1748998382220,4.816e-05,105390.0,105380.0,1.61803009]
[1748998382762,4.816e-05,105390.0,105380.0,2.01803009]
[1748998383054,4.816e-05,105390.0,105380.0,1.98773068]
[1748998383344,0.0682868,105410.0,105400.0,0.05]
[1748998383595,0.0682868,105410.0,105400.0,0.97441324]
[1748998383596,0.06833493,105410.0,105400.0,0.97441324]
[1748998383834,0.06833493,105410.0,105400.0,0.97204183]
[1748998384324,0.06833493,105410.0,105400.0,1.00232512]
[1748998384551,0.06933493,105410.0,105400.0,1.40232512]
[1748998385030,0.05273493,105410.0,105400.0,1.40232512]
[1748998385290,0.05473493,105410.0,105400.0,1.43053511]
[1748998385505,0.03853493,105410.0,105400.0,1.43053511]
[1748998388721,0.03853493,105410.0,105400.0,1.44703511]
[1748998389486,0.02080051,105410.0,105400.0,1.44703511]
[1748998389712,0.02080051,105410.0,105400.0,1.43053511]
[1748998392847,0.02080051,105410.0,105400.0,1.70353511]
[1748998393351,0.02080051,105410.0,105400.0,1.99597511]
[1748998398332,0.05340051,105410.0,105400.0,1.99597511]
[1748998398555,0.05340051,105410.0,105400.0,1.96565182]
[1748998401068,0.03680051,105410.0,105400.0,1.96565182]
[1748998401280,0.02080051,105410.0,105400.0,1.96565182]
[1748998403385,0.02080051,105410.0,105400.0,1.99593511]
[1748998404035,0.02080051,105410.0,105400.0,1.61173511]
[1748998404261,0.02080051,105410.0,105400.0,1.59593511]
[1748998404719,0.02080051,105410.0,105400.0,1.99593511]
[1748998405611,0.02080051,105410.0,105400.0,1.59593511]
[1748998406019,0.02080051,105410.0,105400.0,1.99593511]
[1748998406668,0.02080051,105410.0,105400.0,1.60010758]
[1748998406878,0.02080051,105410.0,105400.0,1.99593511]
[1748998411818,0.02080051,105410.0,105400.0,1.96565182]
[1748998412028,0.02080051,105410.0,105400.0,2.21133182]
[1748998412722,0.02080051,105410.0,105400.0,1.52310429]
[1748998412935,0.02080051,105410.0,105400.0,2.21129182]
[1748998413346,0.01840051,105410.0,105400.0,2.63697378]
[1748998414462,0.01840051,105410.0,105400.0,2.60666667]
[1748998415519,0.01840051,105410.0,105400.0,2.63698447]
[1748998415941,0.01840051,105410.0,105400.0,2.63698456]
[1748998416369,0.01840051,105410.0,105400.0,2.60666667]
[1748998419571,0.01840051,105410.0,105400.0,1.81546429]
[1748998419824,0.01840051,105410.0,105400.0,2.60666667]
[1748998420968,0.01840051,105410.0,105400.0,2.31430667]
[1748998421197,0.04900051,105410.0,105400.0,2.60662667]
[1748998421469,0.04900051,105410.0,105400.0,2.63694686]
[1748998422798,0.04900051,105410.0,105400.0,2.34462686]
[1748998423022,0.04900051,105410.0,105400.0,2.63694686]
[1748998423481,0.04900051,105410.0,105400.0,2.60662667]
[1748998425453,0.04900051,105410.0,105400.0,2.26662667]
[1748998426661,0.03400051,105410.0,105400.0,2.26662667]
[1748998427092,0.01840051,105410.0,105400.0,2.26662667]
[1748998428283,0.01840051,105410.0,105400.0,2.60662667]
[1748998428718,0.04930051,105410.0,105400.0,2.60654667]
[1748998429203,0.03340051,105410.0,105400.0,2.60654667]
[1748998429442,0.01840051,105410.0,105400.0,2.60654667]
[1748998433532,0.01840051,105410.0,105400.0,3.03344786]
[1748998433753,0.01840051,105410.0,105400.0,3.0713614]
[1748998434216,0.01740051,105410.0,105400.0,3.0713614]
[1748998434419,0.01740051,105410.0,105400.0,3.0723614]
[1748998434694,0.01540051,105410.0,105400.0,3.0723614]
[1748998436059,0.01540051,105410.0,105400.0,2.67676021]
[1748998438925,0.01540051,105410.0,105400.0,2.64546021]
[1748998440700,0.01540051,105410.0,105400.0,2.67756021]
[1748998440939,0.01540051,105410.0,105400.0,2.66156021]
[1748998441162,0.01540051,105410.0,105400.0,2.64546021]
[1748998442559,0.01540051,105410.0,105400.0,2.66186021]
[1748998442791,0.01540051,105410.0,105400.0,2.67756021]
[1748998443664,0.01540051,105410.0,105400.0,2.66186021]
[1748998443876,0.01540051,105410.0,105400.0,2.67756021]
[1748998446820,0.01540051,105410.0,105400.0,3.08770225]
[1748998449045,0.00168792,105410.0,105400.0,3.53628871]
[1748998451729,0.00168792,105410.0,105400.0,3.60266225]
[1748998452734,0.00168792,105410.0,105400.0,3.60166225]
[1748998452977,0.00168792,105410.0,105400.0,3.60466225]
[1748998453227,0.00168792,105410.0,105400.0,3.60654225]
[1748998453452,0.00168792,105410.0,105400.0,3.21090106]
[1748998454150,0.00168792,105410.0,105400.0,3.60650225]
[1748998455336,0.00168792,105410.0,105400.0,2.81519734]
[1748998459012,0.00015121,105410.0,105400.0,2.81519734]
[1748998464768,0.04097677,105430.0,105410.0,0.01454085]
[1748998464984,0.04097677,105430.0,105420.0,0.95420807]
[1748998465224,0.04097677,105430.0,105420.0,0.95183732]
[1748998466783,0.04097677,105430.0,105420.0,0.96157248]
[1748998468988,0.04097677,105430.0,105420.0,1.36157248]
[1748998469417,0.04097677,105430.0,105420.0,1.60721248]
[1748998471707,0.04097677,105430.0,105420.0,1.65721248]
[1748998472565,0.04097677,105430.0,105420.0,1.25721248]
[1748998473226,0.04097677,105430.0,105420.0,1.65721248]
[1748998473644,0.04097677,105430.0,105420.0,0.91721248]
[1748998474090,0.04097677,105430.0,105420.0,1.31721248]
[1748998474325,0.02467677,105430.0,105420.0,1.98567114]
[1748998474552,0.00887677,105430.0,105420.0,1.58567114]
[1748998475215,0.00887677,105430.0,105420.0,2.32555964]
[1748998479251,0.00647677,105430.0,105420.0,2.32555964]
[1748998480338,0.00647677,105430.0,105420.0,2.29527528]
[1748998480994,0.03887677,105430.0,105420.0,2.58731528]
[1748998484205,0.02307677,105430.0,105420.0,2.58731528]
[1748998484974,0.00647677,105430.0,105420.0,2.58731528]
[1748998485939,0.00647677,105430.0,105420.0,2.61911528]
[1748998486160,0.00647677,105430.0,105420.0,2.60381528]
[1748998487045,0.00647677,105430.0,105420.0,2.58731528]
[1748998490722,0.03827677,105430.0,105420.0,2.58731528]
[1748998492077,0.02207677,105430.0,105420.0,2.58731528]
[1748998492338,0.00647677,105430.0,105420.0,2.58731528]
[1748998495192,0.02147677,105430.0,105420.0,2.58731528]
[1748998496126,0.02147677,105430.0,105420.0,1.41418946]
[1748998496325,0.03677677,105430.0,105420.0,2.61750048]
[1748998501736,0.03677677,105430.0,105420.0,2.21750048]
[1748998502176,0.03677677,105430.0,105420.0,2.61750048]
[1748998504119,0.03677677,105430.0,105420.0,2.21750048]
[1748998504536,0.03677677,105430.0,105420.0,2.21738048]
[1748998504752,0.03677677,105430.0,105420.0,2.61738048]
[1748998508639,0.03677677,105430.0,105420.0,0.92589466]
[1748998508873,0.03677677,105430.0,105420.0,0.3914943]
[1748998509155,0.03677677,105430.0,105420.0,0.7734943]
[1748998510055,0.03777677,105430.0,105420.0,0.7734943]
[1748998511408,0.03977677,105430.0,105420.0,0.7734943]
[1748998535078,0.03977677,105430.0,105420.0,1.0464943]
[1748998540107,0.03977677,105430.0,105420.0,0.7545743]
[1748998540334,0.03977677,105430.0,105420.0,1.0464143]
[1748998542879,0.03977677,105430.0,105420.0,1.0463743]
[1748998545395,0.03909677,105430.0,105420.0,1.0463743]
[1748998548007,0.03918808,105430.0,105420.0,1.0463743]
[1748998561060,0.03718808,105430.0,105420.0,1.0463743]
[1748998561733,0.03618808,105430.0,105420.0,1.0463743]
[1748998562000,0.03618808,105430.0,105420.0,1.0462943]
[1748998571440,0.03618808,105430.0,105420.0,0.7545743]
[1748998571657,0.03618808,105430.0,105420.0,1.0462143]
[1748998571902,0.03618808,105430.0,105420.0,0.6644943]
[1748998572131,0.03618808,105430.0,105420.0,1.0460543]
[1748998574800,0.03618808,105430.0,105420.0,0.6644943]
[1748998575016,0.03618808,105430.0,105420.0,0.7544143]
[1748998575240,0.03618808,105430.0,105420.0,1.04475282]
[1748998581795,0.03618808,105430.0,105420.0,1.04471282]
[1748998582449,0.04256824,105430.0,105420.0,0.60856]
[1748998582658,0.04256824,105430.0,105420.0,0.90016]
[1748998582870,0.38256824,105430.0,105420.0,0.90016]
[1748998583080,0.38256824,105430.0,105420.0,0.51864]
[1748998583270,0.38256824,105430.0,105420.0,0.90016]
[1748998583533,0.40034082,105430.0,105420.0,0.90016]
[1748998583754,0.38256824,105430.0,105420.0,0.90016]
[1748998584811,0.40034389,105430.0,105420.0,0.90016]
[1748998585031,0.38256824,105430.0,105420.0,0.90016]
[1748998585245,0.40034389,105430.0,105420.0,0.90016]
[1748998585461,0.42936823,105430.0,105420.0,0.90016]
[1748998585667,0.41159258,105430.0,105420.0,0.90016]
[1748998586572,0.40521242,105430.0,105420.0,0.90016]
[1748998587222,0.37618808,105430.0,105420.0,0.90016]
[1748998587431,0.39396372,105430.0,105420.0,0.90016]
[1748998587648,0.37618808,105430.0,105420.0,0.90016]
[1748998588316,0.39396373,105430.0,105420.0,0.90016]
[1748998588522,0.37618808,105430.0,105420.0,0.62716]
[1748998588736,0.40398399,105430.0,105420.0,0.62712]
[1748998589376,0.42175306,105430.0,105420.0,0.62712]
[1748998589594,0.40398399,105430.0,105420.0,0.62712]
[1748998590019,0.42175301,105430.0,105420.0,0.62712]
[1748998590230,0.40398399,105430.0,105420.0,0.62712]
[1748998590660,0.42175071,105430.0,105420.0,0.62712]
[1748998590903,0.42175061,105430.0,105420.0,0.62712]
[1748998591120,0.42175099,105430.0,105420.0,0.62712]
[1748998591300,0.40398399,105430.0,105420.0,0.62712]
[1748998592210,0.42175175,105430.0,105420.0,0.33544]
[1748998592422,0.42175175,105430.0,105420.0,0.627]
[1748998592423,0.40398399,105430.0,105420.0,0.627]
[1748998592650,0.42175128,105430.0,105420.0,0.33544]
[1748998592860,0.40398399,105430.0,105420.0,0.627]
[1748998593773,0.42175005,105430.0,105420.0,0.627]
[1748998594002,0.40398399,105430.0,105420.0,0.627]
[1748998594220,0.42175117,105430.0,105420.0,0.627]
[1748998594433,0.40398399,105430.0,105420.0,0.627]
[1748998596362,0.39395615,105430.0,105420.0,0.62704]
[1748998596575,0.34588808,105430.0,105420.0,0.62704]
[1748998596793,0.3636581,105430.0,105420.0,0.62704]
[1748998597003,0.34588808,105430.0,105420.0,0.7228943]
[1748998597436,0.00588808,105430.0,105420.0,0.7228943]
[1748998597734,0.00588808,105430.0,105420.0,0.7388943]
[1748998597942,0.00588808,105430.0,105420.0,0.8050943]
[1748998599733,0.00588808,105430.0,105420.0,0.81478918]
[1748998601099,0.00588808,105430.0,105420.0,0.8050943]
[1748998602737,0.00588808,105430.0,105420.0,0.5135343]
[1748998602989,0.00588808,105430.0,105420.0,0.7888543]
[1748998603458,0.00588808,105430.0,105420.0,0.7728543]
[1748998605440,0.00588808,105430.0,105420.0,0.4813343]
[1748998605641,0.00588808,105430.0,105420.0,0.7728143]
[1748998605863,0.02228808,105430.0,105420.0,0.7728143]
[1748998606326,0.00588808,105430.0,105420.0,0.4813343]
[1748998606564,0.00588808,105430.0,105420.0,0.7728143]
[1748998607314,0.02228808,105430.0,105420.0,0.4813343]
[1748998607535,0.03868808,105430.0,105420.0,0.7728143]
[1748998608190,0.02228808,105430.0,105420.0,0.7728143]
[1748998609261,0.00588808,105430.0,105420.0,0.7728143]
[1748998614251,0.00588808,105430.0,105420.0,0.4813343]
[1748998614468,0.00588808,105430.0,105420.0,0.7727743]
[1748998616214,0.00588808,105430.0,105420.0,0.7889743]
[1748998616446,0.00588808,105430.0,105420.0,0.7727743]
[1748998618187,0.00588808,105430.0,105420.0,0.8057743]
[1748998618841,0.00588808,105430.0,105420.0,0.7892743]
[1748998619110,0.00588808,105430.0,105420.0,0.7727743]
[1748998623557,0.00588808,105430.0,105420.0,0.7727343]
[1748998623758,0.37758808,105430.0,105420.0,0.7727343]
[1748998624246,0.03758808,105430.0,105420.0,0.7727343]
[1748998624975,0.00588808,105430.0,105420.0,0.7727343]
[1748998627306,0.03638808,105430.0,105420.0,0.4813343]
[1748998627528,0.07567349,105430.0,105420.0,0.7727343]
[1748998629736,0.03638808,105430.0,105420.0,0.7727343]
[1748998634950,0.00588808,105430.0,105420.0,0.7727343]
[1748998642224,0.00588808,105430.0,105420.0,1.94986943]
[1748998642700,0.00588808,105430.0,105420.0,2.00863563]
[1748998642931,1.479e-05,105430.0,105420.0,2.01769487]
[1748998643395,1.479e-05,105430.0,105420.0,1.64963142]
[1748998645698,1.479e-05,105430.0,105420.0,1.61932622]
[1748998645960,1.479e-05,105430.0,105420.0,1.61026698]
[1748998646204,1.479e-05,105430.0,105420.0,1.64057218]
[1748998647271,1.479e-05,105430.0,105420.0,2.04057218]
[1748998647505,1.479e-05,105430.0,105420.0,2.01026698]
[1748998652118,1.479e-05,105430.0,105420.0,0.83358751]
[1748998652360,1.479e-05,105430.0,105420.0,0.4226943]
[1748998652590,1.479e-05,105430.0,105420.0,0.8036543]
[1748998652800,1.479e-05,105430.0,105420.0,0.7724143]
[1748998653439,1.479e-05,105430.0,105420.0,0.7883143]
[1748998653708,1.479e-05,105430.0,105420.0,0.8035143]
[1748998658669,1.479e-05,105430.0,105420.0,0.7724143]
[1748998659349,1.479e-05,105430.0,105420.0,0.4812143]
[1748998659553,1.479e-05,105430.0,105420.0,0.7724143]
[1748998660843,1.479e-05,105430.0,105420.0,1.19875377]
[1748998664117,1.479e-05,105430.0,105420.0,1.47171377]
[1748998671150,1.479e-05,105430.0,105420.0,1.48625462]
[1748998671591,1.479e-05,105430.0,105420.0,1.51471562]
[1748998673420,0.00495754,105440.0,105420.0,1.51471562]
[1748998673642,0.00495754,105440.0,105430.0,0.0958543]
[1748998675889,0.00495754,105440.0,105430.0,0.1769543]
[1748998676101,0.00495754,105440.0,105430.0,0.58930541]
[1748998676280,0.00495754,105440.0,105430.0,0.58693462]
[1748998678280,0.00495754,105440.0,105430.0,0.61539362]
[1748998678676,0.00495754,105440.0,105430.0,1.03133458]
[1748998682533,0.00495754,105440.0,105430.0,1.32241458]
[1748998682742,0.00495754,105440.0,105430.0,1.72241458]
[1748998684320,0.00495754,105440.0,105430.0,1.25099415]
[1748998684566,0.00495754,105440.0,105430.0,1.64643362]
[1748998689275,0.00495754,105440.0,105430.0,1.25099415]
[1748998689449,0.00495754,105440.0,105430.0,1.64643362]
[1748998689643,0.00495754,105440.0,105430.0,1.24643362]
[1748998690273,0.00495754,105440.0,105430.0,1.64643362]
[1748998691014,0.00495754,105440.0,105430.0,1.24643362]
[1748998691488,0.00495754,105440.0,105430.0,1.64643362]
[1748998693291,0.00495754,105440.0,105430.0,1.35539362]
[1748998693489,0.00495754,105440.0,105430.0,1.64639362]
[1748998696136,0.00495754,105440.0,105430.0,1.67656498]
[1748998698673,0.00495754,105440.0,105430.0,1.67448185]
[1748998699957,0.00495754,105440.0,105430.0,1.76400185]
[1748998701250,0.00495754,105440.0,105430.0,1.36400185]
[1748998701454,0.00495754,105440.0,105430.0,1.07300185]
[1748998701664,0.00495754,105440.0,105430.0,1.36396185]
[1748998702098,0.00495754,105440.0,105430.0,1.33286185]
[1748998703422,0.00495754,105440.0,105430.0,1.73286185]
[1748998706844,0.00495754,105440.0,105430.0,1.97846185]
[1748998711576,0.00495754,105440.0,105430.0,2.25138185]
[1748998714686,0.00495754,105440.0,105430.0,1.47090185]
[1748998714897,0.03675754,105440.0,105430.0,0.79652338]
[1748998715122,0.03675754,105440.0,105430.0,0.66229117]
[1748998715340,0.03675754,105440.0,105430.0,1.04273117]
[1748998722509,0.03675754,105440.0,105430.0,1.43817064]
[1748998722723,0.00495754,105440.0,105430.0,1.04273117]
[1748998722934,0.00495754,105440.0,105430.0,1.43817064]
[1748998726836,0.00495754,105440.0,105430.0,1.48511149]
[1748998727916,0.00495754,105440.0,105430.0,1.45271149]
[1748998731467,0.00495754,105440.0,105430.0,1.46881149]
[1748998732719,0.00495754,105440.0,105430.0,1.45271149]
[1748998733356,0.00495754,105440.0,105430.0,1.46831149]
[1748998733850,0.00495754,105440.0,105430.0,1.45271149]
[1748998736819,0.00495754,105440.0,105430.0,1.46841149]
[1748998737423,0.00495754,105440.0,105430.0,1.45271149]
[1748998739272,0.00391754,105440.0,105430.0,1.45271149]
[1748998740824,0.00391754,105440.0,105430.0,1.46831149]
[1748998741353,0.00391754,105440.0,105430.0,1.45271149]
[1748998743709,0.00391754,105440.0,105430.0,0.76635202]
[1748998743921,0.00391754,105440.0,105430.0,1.45267149]
[1748998744367,0.00391754,105440.0,105430.0,1.05723202]
[1748998745248,0.00391754,105440.0,105430.0,1.45267069]
[1748998752297,0.00391754,105440.0,105430.0,1.48284205]
[1748998752991,0.00391754,105440.0,105430.0,1.51524205]
[1748998753824,0.00391754,105440.0,105430.0,1.48284205]
[1748998756700,0.03601754,105440.0,105430.0,0.79644338]
[1748998756922,0.03601754,105440.0,105430.0,1.48268205]
[1748998759255,0.03601754,105440.0,105430.0,1.45251069]
[1748998762292,0.00391754,105440.0,105430.0,1.45251069]
[1748998762506,0.03491754,105440.0,105430.0,1.05707202]
[1748998762724,0.03491754,105440.0,105430.0,1.45251069]
[1748998762947,0.03491754,105440.0,105430.0,0.66229117]
[1748998763181,0.03491754,105440.0,105430.0,1.04253117]
[1748998766941,0.03491754,105440.0,105430.0,1.43796984]
[1748998767800,0.03491754,105440.0,105430.0,1.04253117]
[1748998773733,0.01901754,105440.0,105430.0,1.04253117]
[1748998774615,0.00391754,105440.0,105430.0,1.45251069]
[1748998774819,0.00391754,105440.0,105430.0,1.48421069]
[1748998783406,0.00391754,105440.0,105430.0,1.46821069]
[1748998784896,0.00391754,105440.0,105430.0,1.45251069]
[1748998792725,0.00391754,105440.0,105430.0,1.46761069]
[1748998792983,0.00391754,105440.0,105430.0,1.48291069]
[1748998793216,0.00391754,105440.0,105430.0,1.46836984]
[1748998793897,0.00391754,105440.0,105430.0,1.8985412]
[1748998794345,0.00391754,105440.0,105430.0,1.4985412]
[1748998797095,0.00391754,105440.0,105430.0,2.24852072]
[1748998797324,0.00391754,105440.0,105430.0,1.85308205]
[1748998797564,0.00391754,105440.0,105430.0,1.45764338]
[1748998797795,0.00391754,105440.0,105430.0,1.85308205]
[1748998799622,0.00391754,105440.0,105430.0,1.51308205]
[1748998801010,0.00391754,105440.0,105430.0,1.90852072]
[1748998801228,0.00391754,105440.0,105430.0,2.30852072]
[1748998802832,0.00391754,105440.0,105430.0,1.91308205]
[1748998803573,0.00391754,105440.0,105430.0,2.30852072]
[1748998803803,0.00377527,105440.0,105430.0,2.30852072]
[1748998806135,0.00377527,105440.0,105430.0,1.51764338]
[1748998806356,0.00377527,105440.0,105430.0,2.30852072]
[1748998807015,0.00377527,105440.0,105430.0,1.91308205]
[1748998810247,0.00377527,105440.0,105430.0,1.91284205]
[1748998811642,0.00377527,105440.0,105430.0,1.87284205]
[1748998811866,0.00377527,105440.0,105430.0,2.25268205]
[1748998812322,0.00377527,105440.0,105430.0,1.87284205]
[1748998812550,0.00377527,105440.0,105430.0,2.25264205]
[1748998817191,0.00377527,105440.0,105430.0,1.39700338]
[1748998817422,0.03597527,105440.0,105430.0,1.82224205]
[1748998817913,0.03597527,105440.0,105430.0,2.22224205]
[1748998818575,0.03597527,105440.0,105430.0,1.82224205]
[1748998823949,0.03597527,105440.0,105430.0,1.53172205]
[1748998824195,0.03597527,105440.0,105430.0,1.04209117]
[1748998825355,0.03597527,105440.0,105430.0,1.43752984]
[1748998825805,0.03597527,105440.0,105430.0,1.04209117]
[1748998828008,0.03597527,105440.0,105430.0,1.43752984]
[1748998831711,0.03597527,105440.0,105430.0,1.04209117]